bitfinex/quotes_BTCUSD_20250527
["timestamp","ask_amount","ask_price","bid_price","bid_amount"]
[1748371628772,0.01314871,109890.0,109880.0,4.41520187]
[1748371628985,0.03814813,109890.0,109880.0,4.41520187]
[1748371629196,0.03814813,109890.0,109880.0,6.66261387]
[1748371630304,0.23644906,109890.0,109880.0,0.51757447]
[1748371630534,0.26119205,109890.0,109880.0,1.23994855]
[1748371630750,0.23644906,109890.0,109880.0,1.34506755]
[1748371633597,0.23644906,109890.0,109880.0,0.69903447]
[1748371633830,0.23644906,109890.0,109880.0,1.30080055]
[1748371635786,0.23644906,109890.0,109880.0,0.96080055]
[1748371635911,0.23644906,109890.0,109880.0,1.30080055]
[1748371636727,0.23644906,109890.0,109880.0,1.11934055]
[1748371636971,0.23644906,109890.0,109880.0,0.51757447]
[1748371637159,0.23644906,109890.0,109880.0,1.11934055]
[1748371637595,0.23644906,109890.0,109880.0,1.0009996]
[1748371639766,0.23644906,109890.0,109880.0,0.99182008]
[1748371648238,0.23644906,109890.0,109880.0,0.390054]
[1748371648472,0.23644906,109890.0,109880.0,0.99182008]
[1748371652004,0.23644906,109890.0,109880.0,0.390054]
[1748371652005,0.52448906,109890.0,109880.0,0.390054]
[1748371656225,0.23644906,109890.0,109880.0,0.99182008]
[1748371656689,0.23644906,109890.0,109880.0,1.08287403]
[1748371656904,0.22734947,109890.0,109880.0,1.08287403]
[1748371658394,0.22734947,109890.0,109880.0,1.11016703]
[1748371661273,0.51530947,109890.0,109880.0,1.11016703]
[1748371661533,0.22734947,109890.0,109880.0,1.11016703]
[1748371663551,0.22734947,109890.0,109880.0,0.77016703]
[1748371672372,0.22734947,109890.0,109880.0,1.11016703]
[1748371674346,0.22734947,109890.0,109880.0,1.01911308]
[1748371675043,0.22734947,109890.0,109880.0,0.99182008]
[1748371678204,0.22734947,109890.0,109880.0,0.34]
[1748371678423,0.22734947,109890.0,109880.0,0.94176608]
[1748371680681,0.22734947,109890.0,109880.0,0.60176608]
[1748371683567,0.19111741,109880.0,109870.0,0.027295]
[1748371683784,0.20621741,109880.0,109870.0,0.72011503]
[1748371684011,0.20621741,109880.0,109870.0,0.90214834]
[1748371684257,0.20621741,109880.0,109870.0,0.91125]
[1748371684425,0.21531799,109880.0,109870.0,0.92035158]
[1748371684639,0.20621741,109880.0,109870.0,0.92035158]
[1748371684856,0.20621741,109880.0,109870.0,0.92135158]
[1748371685289,0.19711674,109880.0,109870.0,0.91225]
[1748371685726,0.19711674,109880.0,109870.0,0.91325]
[1748371685949,0.19711674,109880.0,109870.0,0.76264369]
[1748371686828,0.19111741,109880.0,109870.0,1.5720062]
[1748371687049,0.19111741,109880.0,109870.0,1.5880062]
[1748371687317,0.00910042,109880.0,109870.0,2.83728128]
[1748371687537,0.21841875,109880.0,109870.0,2.83728128]
[1748371687749,0.01820059,109880.0,109870.0,2.22692328]
[1748371687967,0.03640184,109880.0,109870.0,2.22692328]
[1748371688191,0.04550259,109880.0,109870.0,2.14833228]
[1748371688395,0.04550259,109880.0,109870.0,2.44763228]
[1748371688639,0.00204945,109890.0,109880.0,0.20931824]
[1748371688860,0.00204945,109890.0,109880.0,2.7726735]
[1748371689075,0.01114879,109890.0,109880.0,2.7726735]
[1748371689299,0.02024838,109890.0,109880.0,2.7726735]
[1748371689512,0.01114879,109890.0,109880.0,2.7726735]
[1748371689731,0.02124838,109890.0,109880.0,2.7726735]
[1748371689987,0.02124838,109890.0,109880.0,2.62176057]
[1748371690192,0.03034814,109890.0,109880.0,2.62176057]
[1748371690408,0.02124838,109890.0,109880.0,2.90940057]
[1748371690641,0.02224838,109890.0,109880.0,2.90940057]
[1748371691553,0.03134805,109890.0,109880.0,2.90940057]
[1748371692037,0.01314879,109890.0,109880.0,2.90940057]
[1748371692252,0.0222483,109890.0,109880.0,2.62176057]
[1748371692709,0.00404945,109890.0,109880.0,5.15601957]
[1748371692936,0.00404945,109890.0,109880.0,5.12118657]
[1748371693160,0.00404945,109890.0,109880.0,5.05682257]
[1748371693398,0.00404945,109890.0,109880.0,4.99741957]
[1748371693653,0.01314871,109890.0,109880.0,4.99741957]
[1748371693878,0.01314871,109890.0,109880.0,5.01623257]
[1748371694085,0.02224822,109890.0,109880.0,3.66508657]
[1748371694293,0.02224813,109890.0,109880.0,3.74769557]
[1748371694508,0.02224813,109890.0,109880.0,5.10346857]
[1748371694714,0.0313478,109890.0,109880.0,5.14346857]
[1748371695407,0.0313478,109890.0,109880.0,5.14347157]
[1748371695646,0.23884848,109890.0,109880.0,1.20982944]
[1748371695867,0.21334906,109890.0,109880.0,1.67578329]
[1748371696075,0.21334906,109890.0,109880.0,1.61580188]
[1748371696076,0.20424939,109890.0,109880.0,1.61580188]
[1748371696276,0.22064939,109890.0,109880.0,1.62490271]
[1748371696478,0.22064939,109890.0,109880.0,1.63400338]
[1748371697276,0.22064939,109890.0,109880.0,1.64310396]
[1748371697478,0.22064939,109890.0,109880.0,1.65220446]
[1748371697727,0.22064939,109890.0,109880.0,1.67949446]
[1748371699721,0.20424939,109890.0,109880.0,1.67949446]
[1748371701143,0.02224872,109890.0,109880.0,1.67949446]
[1748371701345,0.21334882,109890.0,109880.0,2.28987741]
[1748371701719,0.22244882,109890.0,109880.0,2.28077716]
[1748371702089,0.22244882,109890.0,109880.0,2.28077724]
[1748371703135,0.04044864,109890.0,109880.0,2.28077724]
[1748371703372,0.03134856,109890.0,109880.0,4.62031649]
[1748371703584,0.02224872,109890.0,109880.0,4.48354449]
[1748371703788,0.02224872,109890.0,109880.0,4.48354549]
[1748371703998,0.03134856,109890.0,109880.0,2.20372949]
[1748371704206,0.03134856,109890.0,109880.0,4.47057849]
[1748371704402,0.02224872,109890.0,109880.0,4.46331749]
[1748371704610,0.02224872,109890.0,109880.0,4.46331649]
[1748371704827,0.02224872,109890.0,109880.0,4.47628649]
[1748371705048,0.04044765,109890.0,109880.0,4.47628649]
[1748371705309,0.23154775,109890.0,109880.0,4.03213149]
[1748371705516,0.22244849,109890.0,109880.0,2.03940688]
[1748371705728,0.23714939,109890.0,109880.0,1.47621414]
[1748371705950,0.23714939,109890.0,109880.0,1.65823088]
[1748371706185,0.23714939,109890.0,109880.0,1.37713246]
[1748371706439,0.22804955,109890.0,109880.0,1.17691414]
[1748371706671,0.21894963,109890.0,109880.0,1.17691414]
[1748371706911,0.21894963,109890.0,109880.0,1.36803171]
[1748371707362,0.21894963,109890.0,109880.0,1.37713238]
[1748371707589,0.21894963,109890.0,109880.0,1.17691414]
[1748371707857,0.25904296,109890.0,109880.0,1.05962714]
[1748371708091,0.21894963,109890.0,109880.0,0.71962714]
[1748371709625,0.21894963,109890.0,109880.0,0.02729]
[1748371709871,0.50630963,109890.0,109880.0,0.02729]
[1748371716637,0.50630963,109890.0,109880.0,0.36729]
[1748371717084,0.50630963,109890.0,109880.0,0.96857319]
[1748371717714,0.50630963,109890.0,109880.0,0.02729]
[1748371719662,0.50630963,109890.0,109870.0,0.94128319]
[1748371719663,0.22251741,109880.0,109870.0,0.94128319]
[1748371719846,0.22251741,109880.0,109870.0,1.05963214]
[1748371720757,0.22251741,109880.0,109870.0,1.15407014]
[1748371721174,0.22251741,109880.0,109870.0,1.03333714]
[1748371721637,0.25967795,109880.0,109870.0,0.001]
[1748371722091,0.25967795,109880.0,109870.0,0.002]
[1748371722512,0.22251741,109880.0,109870.0,0.002]
[1748371725023,0.22251741,109880.0,109870.0,0.94328319]
[1748371725687,0.22251741,109880.0,109870.0,0.342]
[1748371727137,0.47140963,109890.0,109880.0,0.36730134]
[1748371727138,0.00204945,109890.0,109880.0,0.36730134]
[1748371727272,0.00204945,109890.0,109880.0,1.78388446]
[1748371727642,0.00204945,109890.0,109880.0,2.22713527]
[1748371727833,0.01114871,109890.0,109880.0,2.34548022]
[1748371728944,0.01114871,109890.0,109880.0,2.94676341]
[1748371728945,0.00204945,109890.0,109880.0,2.94676341]
[1748371730968,0.03844782,109890.0,109880.0,2.86680941]
[1748371731163,0.21134874,109890.0,109880.0,2.14798263]
[1748371731365,0.21134874,109890.0,109880.0,2.15418355]
[1748371731535,0.21134874,109890.0,109880.0,2.15418363]
[1748371731733,0.02934856,109890.0,109880.0,2.17238422]
[1748371731936,0.22044874,109890.0,109880.0,2.16328397]
[1748371732139,0.22044874,109890.0,109880.0,2.15418363]
[1748371732365,0.02934856,109890.0,109880.0,2.16328388]
[1748371732562,0.22044874,109890.0,109880.0,2.15418363]
[1748371732780,0.21134923,109890.0,109880.0,2.14508321]
[1748371732963,0.22654923,109890.0,109880.0,2.10369321]
[1748371733583,0.22654923,109890.0,109880.0,2.11279371]
[1748371733760,0.22654923,109890.0,109880.0,2.10369321]
[1748371733958,0.21744947,109890.0,109880.0,2.09459263]
[1748371734158,0.21464963,109890.0,109880.0,1.05962814]
[1748371734410,0.21464963,109890.0,109880.0,0.94128319]
[1748371743974,0.00204945,109890.0,109880.0,1.84293857]
[1748371744198,0.22044791,109890.0,109880.0,2.38997332]
[1748371744422,0.22044857,109890.0,109880.0,1.42865063]
[1748371744643,0.00910257,109850.0,109840.0,0.19988281]
[1748371744884,0.20937515,109850.0,109840.0,0.74116019]
[1748371745086,0.00910265,109850.0,109840.0,2.09297262]
[1748371745287,0.21615436,109860.0,109850.0,0.2002725]
[1748371745505,0.20935627,109860.0,109850.0,1.85196979]
[1748371745720,0.20935627,109860.0,109850.0,1.67657274]
[1748371745949,0.20030379,109860.0,109850.0,1.48876874]
[1748371746184,0.20030379,109860.0,109850.0,1.49787181]
[1748371746623,0.20030379,109860.0,109850.0,1.50487181]
[1748371747293,0.20030379,109860.0,109850.0,1.52307754]
[1748371747294,0.0182535,109860.0,109850.0,1.52307754]
[1748371747507,0.01825341,109860.0,109850.0,1.52307754]
[1748371747719,0.01825316,109860.0,109850.0,1.53907754]
[1748371747940,0.01825308,109860.0,109850.0,1.55477754]
[1748371748193,0.02735515,109860.0,109850.0,1.55477754]
[1748371748849,0.03645731,109860.0,109850.0,1.55477754]
[1748371749274,0.00915117,109860.0,109850.0,1.55477754]
[1748371749504,4.943e-05,109860.0,109850.0,6.03243854]
[1748371751784,4.943e-05,109860.0,109850.0,5.98647854]
[1748371752004,4.943e-05,109860.0,109850.0,4.80263854]
[1748371752165,4.943e-05,109860.0,109850.0,4.66833954]
[1748371752543,4.943e-05,109860.0,109850.0,4.73506154]
[1748371753570,4.943e-05,109860.0,109850.0,5.98533154]
[1748371753792,0.00915126,109860.0,109850.0,5.98533154]
[1748371754005,0.01825333,109860.0,109850.0,3.97774454]
[1748371754212,0.01825333,109860.0,109850.0,1.8504888]
[1748371754414,0.23370794,109860.0,109850.0,1.99738671]
[1748371754623,0.23370794,109860.0,109850.0,2.09360653]
[1748371754842,0.23370794,109860.0,109850.0,2.10270927]
[1748371755287,0.04255557,109860.0,109850.0,2.10270927]
[1748371755500,0.05165789,109860.0,109850.0,2.10270927]
[1748371755721,0.05165789,109860.0,109850.0,2.13836827]
[1748371756699,0.05165789,109860.0,109850.0,2.20635827]
[1748371757292,0.24281018,109860.0,109850.0,2.20635827]
[1748371757518,0.24281018,109860.0,109850.0,2.16126827]
[1748371757745,0.0607603,109860.0,109850.0,2.20636827]
[1748371757965,0.24281018,109860.0,109850.0,2.20636827]
[1748371758184,0.05165789,109860.0,109850.0,2.20636827]
[1748371758605,0.04255557,109860.0,109850.0,1.58109327]
[1748371758884,0.03345333,109860.0,109850.0,3.13180027]
[1748371759105,0.01825333,109860.0,109850.0,3.41860027]
[1748371759552,0.02735541,109860.0,109850.0,3.41860027]
[1748371759777,0.02735541,109860.0,109850.0,3.93388227]
[1748371759999,0.02735541,109860.0,109850.0,1.58101327]
[1748371760208,0.02735541,109860.0,109850.0,4.06388227]
[1748371760640,0.01825325,109860.0,109850.0,4.06388227]
[1748371761194,0.02735541,109860.0,109850.0,4.06388227]
[1748371761427,0.02735541,109860.0,109850.0,4.46877227]
[1748371761644,0.02735541,109860.0,109850.0,4.00860027]
[1748371762070,0.02735541,109860.0,109850.0,3.40731708]
[1748371762297,0.05285782,109860.0,109850.0,2.18179827]
[1748371762590,0.05285782,109860.0,109850.0,2.17269553]
[1748371762840,0.05285782,109860.0,109850.0,2.18179827]
[1748371763313,0.04375541,109860.0,109850.0,2.33498927]
[1748371763737,0.05285773,109860.0,109850.0,2.33498927]
[1748371763967,0.04375541,109860.0,109850.0,2.33498927]
[1748371764190,0.05285773,109860.0,109850.0,2.33498927]
[1748371764415,0.06196014,109860.0,109850.0,3.24240727]
[1748371764629,0.04375541,109860.0,109850.0,3.24240727]
[1748371764850,0.04375541,109860.0,109850.0,2.03520653]
[1748371765058,0.06785773,109860.0,109850.0,2.04430927]
[1748371765287,0.05875541,109860.0,109850.0,2.04430927]
[1748371765507,0.06785765,109860.0,109850.0,2.35632227]
[1748371765731,0.07695997,109860.0,109850.0,2.35632227]
[1748371766390,0.07695997,109860.0,109850.0,3.23678527]
[1748371767537,4.943e-05,109860.0,109850.0,3.29948527]
[1748371767757,0.0273554,109860.0,109850.0,3.31578527]
[1748371767970,0.01825316,109860.0,109850.0,3.29948527]
[1748371768400,0.01825316,109860.0,109850.0,5.42631027]
[1748371768621,0.02735548,109860.0,109850.0,5.37059827]
[1748371768834,0.04345548,109860.0,109850.0,5.37059827]
[1748371769253,0.05255764,109860.0,109850.0,5.37059827]
[1748371769468,0.04345532,109860.0,109850.0,5.37059827]
[1748371769687,0.04345532,109860.0,109850.0,5.32079427]
[1748371770188,0.02525117,109860.0,109850.0,5.32079427]
[1748371770404,0.04345524,109860.0,109850.0,5.32079427]
[1748371770584,0.04345524,109860.0,109850.0,5.32079727]
[1748371770803,0.05255748,109860.0,109850.0,5.25809827]
[1748371771023,0.05255748,109860.0,109850.0,5.12304627]
[1748371771232,0.05255748,109860.0,109850.0,4.56758127]
[1748371771865,0.0616598,109860.0,109850.0,3.50679127]
[1748371771867,0.0616598,109860.0,109850.0,3.79343127]
[1748371772078,0.0616598,109860.0,109850.0,3.29303527]
[1748371772720,0.0616598,109860.0,109850.0,2.22060727]
[1748371772860,0.04345524,109860.0,109850.0,2.22060727]
[1748371773079,0.05255756,109860.0,109850.0,2.22060727]
[1748371773639,0.05255748,109860.0,109850.0,3.35580827]
[1748371774300,0.0616598,109860.0,109850.0,3.35580827]
[1748371774547,0.0616598,109860.0,109850.0,3.36485396]
[1748371774754,0.04345524,109860.0,109850.0,3.39352596]
[1748371774974,0.05255756,109860.0,109850.0,3.39352596]
[1748371775754,0.04345524,109860.0,109850.0,3.39352596]
[1748371776019,0.04345524,109860.0,109850.0,3.39337196]
[1748371776446,0.00915126,109860.0,109850.0,3.39337196]
[1748371776654,0.01825325,109860.0,109850.0,3.39337196]
[1748371776876,0.01825325,109860.0,109850.0,5.35011996]
[1748371777292,0.01825325,109860.0,109850.0,4.64055696]
[1748371777519,4.943e-05,109860.0,109850.0,5.76060896]
[1748371777733,0.00915126,109860.0,109850.0,6.01414196]
[1748371777950,4.943e-05,109860.0,109850.0,6.06355896]
[1748371778177,4.943e-05,109860.0,109850.0,6.41179596]
[1748371778658,0.00915126,109860.0,109850.0,4.28893296]
[1748371778872,0.00915126,109860.0,109850.0,5.91629296]
[1748371779097,4.943e-05,109860.0,109850.0,5.91765596]
[1748371779332,4.943e-05,109860.0,109850.0,6.15162596]
[1748371779555,4.943e-05,109860.0,109850.0,1.91979896]
[1748371779767,0.24199929,109890.0,109880.0,0.19111749]
[1748371780005,0.24204871,109890.0,109880.0,0.79240068]
[1748371780236,0.2329492,109890.0,109880.0,0.89255546]
[1748371780666,0.2329492,109890.0,109880.0,0.90165613]
[1748371780881,0.2329492,109890.0,109880.0,0.91075663]
[1748371781772,0.2329492,109890.0,109880.0,0.90165613]
[1748371782042,0.22384944,109890.0,109880.0,0.90165613]
[1748371782255,0.02684901,109890.0,109880.0,1.81209707]
[1748371782481,0.03594835,109890.0,109880.0,1.83939007]
[1748371782709,0.02934819,109890.0,109880.0,1.83939007]
[1748371782952,0.22044829,109890.0,109880.0,1.83939007]
[1748371783178,0.23564829,109890.0,109880.0,1.83939007]
[1748371783841,0.24474829,109890.0,109880.0,1.83939007]
[1748371784733,0.02934819,109890.0,109880.0,1.83939007]
[1748371784954,0.03844811,109890.0,109880.0,1.83939007]
[1748371785163,0.03844811,109890.0,109880.0,2.17939007]
[1748371785845,0.03344811,109890.0,109880.0,2.17939007]
[1748371786055,0.03344811,109890.0,109880.0,2.47869007]
[1748371787777,0.22454829,109890.0,109880.0,2.46958982]
[1748371787995,0.23974829,109890.0,109880.0,2.47869016]
[1748371788844,0.23974829,109890.0,109880.0,2.46958982]
[1748371789049,0.23064895,109890.0,109880.0,2.46958982]
[1748371789942,0.2154001,109890.0,109880.0,2.44512332]
[1748371790150,0.22180018,109890.0,109880.0,2.44512332]
[1748371790356,0.22180018,109890.0,109880.0,2.39077432]
[1748371792314,0.21270018,109890.0,109880.0,2.3909691]
[1748371792714,0.21270018,109890.0,109880.0,2.40006968]
[1748371795941,0.21270018,109890.0,109880.0,2.3909691]
[1748371799806,0.21270018,109890.0,109880.0,2.38186843]
[1748371800997,0.21270018,109890.0,109880.0,2.32480168]
[1748371803523,0.21270018,109890.0,109880.0,2.14278494]
[1748371804123,0.21220018,109890.0,109880.0,1.99390243]
[1748371804674,0.21220018,109890.0,109880.0,1.98480168]
[1748371805728,0.20630018,109890.0,109880.0,2.0030031]
[1748371805927,0.20630018,109890.0,109880.0,2.01210368]
[1748371806557,0.21539994,109890.0,109880.0,2.0212041]
[1748371806762,0.21539994,109890.0,109880.0,2.02120361]
[1748371807744,0.21539994,109890.0,109880.0,2.01210327]
[1748371808025,0.21539994,109890.0,109880.0,2.02120361]
[1748371808236,0.04249919,109890.0,109880.0,2.02120361]
[1748371808455,0.04249919,109890.0,109880.0,2.02120311]
[1748371808695,0.0498981,109900.0,109890.0,0.20929945]
[1748371808909,0.25007966,109900.0,109890.0,0.91098155]
[1748371809148,0.25007966,109900.0,109890.0,0.90188229]
[1748371809362,0.23188189,109900.0,109890.0,0.89278262]
[1748371809782,0.23188189,109900.0,109890.0,0.92007262]
[1748371810031,0.23388189,109900.0,109890.0,0.92917221]
[1748371810691,0.23388189,109900.0,109890.0,0.91097286]
[1748371810894,0.23588189,109900.0,109890.0,0.92917246]
[1748371812296,0.23588189,109900.0,109890.0,0.93827213]
[1748371812981,0.23588189,109900.0,109890.0,0.94737172]
[1748371813191,0.21988189,109900.0,109890.0,0.94737172]
[1748371813831,0.02879884,109900.0,109890.0,2.99755923]
[1748371814037,0.04699637,109900.0,109890.0,2.99755881]
[1748371814480,0.02219736,109900.0,109890.0,3.28359881]
[1748371814913,0.0312962,109900.0,109890.0,3.28359881]
[1748371816349,0.0130986,109900.0,109890.0,3.28359881]
[1748371816590,0.02219736,109900.0,109890.0,3.28359881]
[1748371817003,0.0130986,109900.0,109890.0,3.28359881]
[1748371817207,0.02219736,109900.0,109890.0,3.29698069]
[1748371817412,0.0130986,109900.0,109890.0,3.29698069]
[1748371817615,0.02219728,109900.0,109890.0,3.29698069]
[1748371818375,0.004,109900.0,109890.0,3.29698069]
[1748371818597,0.004,109900.0,109890.0,3.61238069]
[1748371819022,0.0130986,109900.0,109890.0,3.61238069]
[1748371819243,0.01109851,109900.0,109890.0,3.61238069]
[1748371819667,0.002,109900.0,109890.0,3.61238069]
[1748371820309,0.24326203,109910.0,109900.0,0.54018139]
[1748371820517,0.24326203,109910.0,109900.0,1.24171452]
[1748371820934,0.24326203,109910.0,109900.0,1.26900152]
[1748371821574,0.24526203,109910.0,109900.0,1.26900152]
[1748371821987,0.05419595,109910.0,109900.0,1.26900152]
[1748371822209,0.06529413,109910.0,109900.0,1.26900152]
[1748371822417,0.25635946,109910.0,109900.0,1.26900152]
[1748371822831,0.25435946,109910.0,109900.0,1.26900152]
[1748371823037,0.25235946,109910.0,109900.0,1.26900152]
[1748371823472,0.06129413,109910.0,109900.0,1.26900152]
[1748371824781,0.05219545,109910.0,109900.0,1.26900152]
[1748371825020,0.07039156,109910.0,109900.0,1.26900152]
[1748371826769,0.07039148,109910.0,109900.0,1.26900152]
[1748371826996,0.07948966,109910.0,109900.0,1.26900152]
[1748371827457,0.07949033,109910.0,109900.0,1.26900152]
[1748371828857,0.07039206,109910.0,109900.0,1.26900152]
[1748371829551,0.06129388,109910.0,109900.0,1.26900152]
[1748371829760,0.07039206,109910.0,109900.0,1.26900152]
[1748371830395,0.07949033,109910.0,109900.0,1.26900152]
[1748371830622,0.07039206,109910.0,109900.0,1.26900152]
[1748371830840,0.26145789,109910.0,109900.0,1.26900152]
[1748371831055,0.07039248,109910.0,109900.0,1.26900152]
[1748371831266,0.25235954,109910.0,109900.0,1.26900152]
[1748371831929,0.07039248,109910.0,109900.0,1.26900152]
[1748371832363,0.06129421,109910.0,109900.0,1.26900152]
[1748371833061,0.03619603,109910.0,109900.0,1.26900152]
[1748371833281,0.04529421,109910.0,109900.0,1.26900152]
[1748371835400,0.05439248,109910.0,109900.0,1.26900152]
[1748371835883,0.04529421,109910.0,109900.0,1.26900152]
[1748371836097,0.06159421,109910.0,109900.0,1.56934284]
[1748371837899,0.05249562,109910.0,109900.0,1.85502292]
[1748371838116,0.25265921,109910.0,109900.0,1.86412152]
[1748371838575,0.07069215,109910.0,109900.0,1.86412152]
[1748371839017,0.25265921,109910.0,109900.0,1.57844152]
[1748371839260,0.25265921,109910.0,109900.0,1.86412152]
[1748371839484,0.0615938,109910.0,109900.0,1.86412152]
[1748371839696,0.25265913,109910.0,109900.0,1.86312152]
[1748371840179,0.07069207,109910.0,109900.0,1.86312152]
[1748371841298,0.0615938,109910.0,109900.0,1.86312152]
[1748371842165,0.0615938,109910.0,109900.0,1.57744152]
[1748371842593,0.0615938,109910.0,109900.0,1.36904747]
[1748371842802,0.0615938,109910.0,109900.0,1.55103109]
[1748371843223,0.0615938,109910.0,109900.0,1.56922886]
[1748371844594,0.06159372,109910.0,109900.0,1.56922886]
[1748371844820,0.0343,109910.0,109900.0,1.56922886]
[1748371847657,0.0433976,109910.0,109900.0,1.56922886]
[1748371848949,0.0343,109910.0,109900.0,1.56922886]
[1748371850078,0.0433976,109910.0,109900.0,1.56922886]
[1748371850504,0.05249529,109910.0,109900.0,1.56922886]
[1748371850717,0.0433976,109910.0,109900.0,1.56922886]
[1748371851151,0.05249537,109910.0,109900.0,1.56922886]
[1748371851999,0.05249537,109910.0,109900.0,2.02008981]
[1748371855868,0.05249529,109910.0,109900.0,0.66750696]
[1748371856091,0.06159314,109910.0,109900.0,2.02008981]
[1748371856748,0.05249529,109910.0,109900.0,2.02008981]
[1748371856983,0.06159314,109910.0,109900.0,2.02008981]
[1748371857227,0.06159314,109910.0,109900.0,1.56922886]
[1748371857441,0.05249529,109910.0,109900.0,1.56922886]
[1748371857669,0.06159306,109910.0,109900.0,1.56922886]
[1748371857883,0.07978926,109910.0,109900.0,1.56922886]
[1748371858091,0.07069108,109910.0,109900.0,1.56922886]
[1748371858740,0.07978926,109910.0,109900.0,1.56922886]
[1748371861142,0.07978993,109910.0,109900.0,1.56922886]
[1748371861373,0.06159348,109910.0,109900.0,1.56922886]
[1748371861595,0.07069166,109910.0,109900.0,1.56922886]
[1748371862804,0.25265872,109910.0,109900.0,1.56922886]
[1748371863027,0.07069166,109910.0,109900.0,1.56922886]
[1748371863732,0.07069166,109910.0,109900.0,0.66750696]
[1748371863957,0.07978993,109910.0,109900.0,1.56922886]
[1748371865253,0.26175765,109910.0,109900.0,1.56922886]
[1748371865462,0.07979059,109910.0,109900.0,1.56922886]
[1748371865886,0.07069224,109910.0,109900.0,1.56922886]
[1748371866319,0.06159397,109910.0,109900.0,1.56922886]
[1748371869924,0.07069224,109910.0,109900.0,1.56922886]
[1748371871692,0.05249579,109910.0,109900.0,1.56922886]
[1748371871942,0.06159397,109910.0,109900.0,1.56922886]
[1748371872182,0.06159397,109910.0,109900.0,2.02008981]
[1748371872622,0.07069224,109910.0,109900.0,2.02008981]
[1748371872901,0.07069224,109910.0,109900.0,1.56922886]
[1748371874574,0.25972799,109910.0,109900.0,0.09105395]
[1748371874798,0.25972799,109910.0,109900.0,0.5419149]
[1748371875026,0.51970351,109910.0,109900.0,0.79086095]
[1748371875246,0.51970351,109910.0,109890.0,0.00014815]
[1748371875247,0.22298263,109900.0,109890.0,0.00014815]
[1748371875540,0.68838443,109900.0,109890.0,0.00014815]
[1748371875754,0.23752348,109900.0,109890.0,0.00014815]
[1748371876404,0.23752348,109900.0,109890.0,0.00114815]
[1748371876617,0.39045166,109900.0,109890.0,0.00114815]
[1748371876831,0.39045166,109900.0,109890.0,0.34114815]
[1748371877045,0.39045166,109900.0,109890.0,0.34014815]
[1748371877252,0.47985166,109900.0,109890.0,0.34014815]
[1748371878539,0.22298263,109900.0,109890.0,0.7910091]
[1748371879654,0.22298263,109900.0,109890.0,1.24187005]
[1748371880158,0.22298263,109900.0,109890.0,0.94145935]
[1748371880598,0.23208156,109900.0,109890.0,0.94145935]
[1748371880825,0.23208156,109900.0,109890.0,1.0325133]
[1748371883239,0.23208156,109900.0,109890.0,0.4312021]
[1748371883454,0.23208156,109900.0,109890.0,1.0325133]
[1748371885605,0.23208156,109900.0,109890.0,0.69236515]
[1748371886032,0.19110002,109890.0,109880.0,0.9279012]
[1748371886254,0.22240002,109890.0,109880.0,0.99181354]
[1748371886718,0.22240002,109890.0,109880.0,0.69251354]
[1748371887360,0.22240002,109890.0,109880.0,0.69351354]
[1748371888228,0.22240002,109890.0,109880.0,0.69451354]
[1748371890611,0.22240002,109890.0,109880.0,1.03451354]
[1748371897586,0.22240002,109890.0,109880.0,0.43320234]
[1748371897806,0.22240002,109890.0,109880.0,1.03451354]
[1748371903891,0.22240002,109890.0,109880.0,1.06180754]
[1748371910148,0.22240002,109890.0,109880.0,1.3626551]
[1748371910378,0.22240002,109890.0,109880.0,0.46049634]
[1748371910618,0.22240002,109890.0,109880.0,1.3626551]
[1748371911460,0.23149978,109890.0,109880.0,1.54467184]
[1748371911664,0.21609978,109890.0,109880.0,1.55377259]
[1748371911904,0.20700002,109890.0,109880.0,1.3626551]
[1748371912181,0.20700002,109890.0,109880.0,1.06188861]
[1748371913841,0.22330002,109890.0,109880.0,0.46049634]
[1748371914052,0.20700002,109890.0,109880.0,1.06188861]
[1748371915604,0.22330002,109890.0,109880.0,1.06188861]
[1748371917827,0.29231638,109890.0,109880.0,0.02944239]
[1748371918057,0.29231638,109890.0,109880.0,0.00214839]
[1748371918279,0.38151638,109890.0,109880.0,0.00214839]
[1748371919399,0.31250002,109890.0,109880.0,0.00214839]
[1748371920688,0.22221741,109880.0,109870.0,0.59854066]
[1748371920902,0.50701741,109880.0,109870.0,0.59868867]
[1748371921818,0.50701741,109880.0,109870.0,0.60068867]
[1748371922049,0.50701741,109880.0,109870.0,0.60268867]
[1748371922514,0.50701741,109880.0,109870.0,0.60554028]
[1748371924192,0.50701741,109880.0,109870.0,0.94554028]
[1748371926229,0.22221741,109880.0,109870.0,0.94354028]
[1748371926704,0.22221741,109880.0,109870.0,0.94154028]
[1748371927932,0.22221741,109880.0,109870.0,0.94254028]
[1748371937521,0.22221741,109880.0,109870.0,0.60254028]
[1748371943402,0.31455202,109880.0,109870.0,0.00114801]
[1748371943837,0.40560597,109880.0,109870.0,0.00114801]
[1748371944731,0.40560597,109880.0,109870.0,0.00014801]
[1748371944954,0.40760597,109880.0,109870.0,0.00014801]
[1748371945245,0.32981221,109880.0,109870.0,0.00014801]
[1748371945668,0.59785741,109880.0,109870.0,0.60154028]
[1748371946770,0.59785741,109880.0,109870.0,0.00014801]
[1748371947197,0.22421741,109880.0,109870.0,0.00014801]
[1748371947408,0.59785741,109880.0,109870.0,0.00014801]
[1748371948321,0.22421741,109880.0,109870.0,0.00014801]
[1748371948541,0.59785741,109880.0,109870.0,0.00014801]
[1748371948751,0.22421741,109880.0,109870.0,0.00014801]
[1748371948960,0.59785741,109880.0,109870.0,0.00014801]
[1748371949371,0.65974739,109880.0,109870.0,0.00014801]
[1748371949791,0.76534219,109880.0,109870.0,0.00014801]
[1748371950874,0.48074219,109880.0,109870.0,0.00014801]
[1748371951081,0.70341221,109880.0,109870.0,0.00014801]
[1748371956964,0.41885221,109880.0,109870.0,0.00014801]
[1748371957175,0.70337221,109880.0,109870.0,0.00014801]
[1748371959533,0.19123561,109870.0,109860.0,0.60339227]
[1748371959748,0.22263561,109870.0,109860.0,0.60344169]
[1748371960858,0.22263561,109870.0,109860.0,0.60444169]
[1748371961071,0.22263561,109870.0,109860.0,0.60544169]
[1748371961312,0.22263561,109870.0,109860.0,0.00404942]
[1748371962658,0.22263561,109870.0,109860.0,0.60544169]
[1748371963581,0.49191561,109870.0,109860.0,0.60544169]
[1748371969474,0.20033702,109870.0,109860.0,0.82739398]
[1748371969717,0.20033719,109870.0,109860.0,0.63624169]
[1748371969962,0.20033719,109870.0,109860.0,0.72729564]
[1748371971042,0.20033719,109870.0,109860.0,0.91844793]
[1748371971249,0.1912357,109870.0,109860.0,0.91844793]
[1748371971483,0.18213412,109870.0,109860.0,0.72729564]
[1748371971701,0.18213412,109870.0,109860.0,0.90934552]
[1748371973420,0.18213412,109870.0,109860.0,0.72729564]
[1748371975533,0.18213412,109870.0,109860.0,0.91844801]
[1748371975746,0.18213412,109870.0,109860.0,0.72729564]
[1748371976397,0.18213412,109870.0,109860.0,0.91844801]
[1748371976606,0.18213412,109870.0,109860.0,0.72729564]
[1748371976825,0.18213412,109870.0,109860.0,0.91844801]
[1748371978441,0.18213412,109870.0,109860.0,1.06729564]
[1748371979654,0.18213412,109870.0,109860.0,1.25844801]
[1748371980074,0.18213412,109870.0,109860.0,1.07639813]
[1748371980852,0.18213412,109870.0,109860.0,1.25844801]
[1748371981292,0.18213412,109870.0,109860.0,1.05219564]